bitfinex-derivatives/quotes_SOLF0:USTF0_20250109
["timestamp","ask_amount","ask_price","bid_price","bid_amount"]
[1736410180011,0.88443464,190.44,190.36,16.99539964]
[1736410180309,5.86,190.48,190.36,16.99539964]
[1736410180510,0.88445791,190.47,190.36,16.99539964]
[1736410181002,16.99539964,190.46,190.35,1.5373]
[1736410181210,0.8844646,190.45,190.35,1.5373]
[1736410181404,0.8844646,190.45,190.35,4.1649]
[1736410181710,0.8844646,190.44,190.35,4.1649]
[1736410181912,0.8844646,190.47,190.35,4.1649]
[1736410182110,0.8844646,190.46,190.36,2.6274]
[1736410182412,0.8844646,190.47,190.37,16.99539964]
[1736410182606,5.86,190.48,190.35,1.5373]
[1736410182607,0.8844646,190.45,190.35,1.5373]
[1736410182807,0.8844646,190.44,190.35,1.5373]
[1736410183209,0.8844646,190.43,190.35,1.5373]
[1736410183509,16.99539964,190.46,190.35,1.5373]
[1736410183710,0.8844646,190.45,190.35,1.5373]
[1736410184912,0.88424119,190.44,190.35,1.5373]
[1736410185204,0.88424119,190.43,190.35,1.5373]
[1736410185408,0.88424119,190.42,190.35,1.5373]
[1736410185600,0.88424119,190.41,190.35,1.5373]
[1736410185803,0.88424119,190.41,190.34,1.4844]
[1736410185804,6.62424119,190.4,190.34,1.4844]
[1736410186000,0.88424119,190.39,190.25,18.47839964]
[1736410186201,0.88424119,190.39,190.26,4.1394]
[1736410186403,0.88424119,190.39,190.26,1.5107]
[1736410187006,0.88424119,190.39,190.29,2.6283]
[1736410187308,5.74,190.4,190.3,1.62]
[1736410188213,5.7,190.43,190.34,2.6277]
[1736410188407,0.88460249,190.42,190.31,16.99539964]
[1736410188814,0.88460249,190.42,190.34,2.6277]
[1736410189710,0.88460249,190.42,190.34,16.99539964]
[1736410189907,5.66,190.46,190.35,3.0204]
[1736410190207,0.88458258,190.45,190.35,3.0204]
[1736410190414,0.88458258,190.45,190.37,2.6272]
[1736410190712,5.66,190.46,190.37,2.6272]
[1736410190906,0.8846298,190.45,190.37,2.6272]
[1736410191110,0.8846298,190.45,190.36,2.6275]
[1736410192208,5.62,190.46,190.36,2.6275]
[1736410192519,0.88468871,190.45,190.36,2.6275]
[1736410192814,5.62,190.46,190.36,2.6275]
[1736410193010,0.88468598,190.45,190.36,2.6275]
[1736410193206,0.88468598,190.45,190.35,3.0204]
[1736410194612,16.99539964,190.37,190.2,46.20009079]
[1736410194807,5.58,190.36,190.21,4.586]
[1736410195011,0.88427504,190.35,190.23,2.6292]
[1736410195237,0.88427504,190.35,190.21,4.586]
[1736410195238,16.99539964,190.34,190.21,4.586]
[1736410195414,0.88415353,190.33,190.21,4.586]
[1736410198110,0.88415353,190.33,190.23,2.6292]
[1736410198418,0.88415353,190.33,190.21,4.586]
[1736410198616,5.58,190.36,190.21,4.586]
[1736410198823,6.38475549,190.35,190.23,16.99539964]
[1736410199119,16.99539964,190.4,190.23,16.99539964]
[1736410199120,5.5,190.36,190.23,16.99539964]
[1736410199308,0.88505969,190.35,190.23,16.99539964]
[1736410200013,16.99539964,190.34,190.21,4.586]
[1736410200317,16.99539964,190.28,190.14,19.62579964]
[1736410200515,5.46,190.27,190.15,4.5829]
[1736410200712,16.99539964,190.25,190.15,4.5829]
[1736410201118,0.88447104,190.24,190.15,4.5829]
[1736410201619,16.99539964,190.25,190.15,4.5829]
[1736410201824,0.88412669,190.24,190.15,4.5829]
[1736410202119,5.46,190.27,190.15,4.5829]
[1736410202516,0.88375309,190.26,190.15,4.5829]
[1736410202918,0.88375309,190.26,190.15,7.2133]
[1736410203119,5.46,190.27,190.15,7.2133]
[1736410203318,0.88365776,190.26,190.15,7.2133]
[1736410203916,0.88365776,190.26,190.15,4.5829]
[1736410204223,5.42,190.27,190.15,4.5829]
[1736410204426,5.42,190.27,190.17,2.63]
[1736410205823,5.42,190.27,190.18,2.63]
[1736410206225,5.42,190.27,190.15,4.5829]
[1736410206422,5.42,190.27,190.19,2.6298]
[1736410206618,2.4737,190.33,190.17,16.99539964]
[1736410206819,0.88405611,190.32,190.23,16.99539964]
[1736410207019,0.88405611,190.32,190.24,4.6346]
[1736410207423,5.38,190.33,190.24,4.6346]
[1736410208026,16.99539964,190.4,190.26,16.99539964]
[1736410208222,6.24399242,190.39,190.26,16.99539964]
[1736410208426,0.88399242,190.38,190.26,16.99539964]
[1736410208924,0.88399242,190.38,190.29,2.6284]
[1736410209125,0.88399242,190.38,190.24,4.6346]
[1736410209524,0.88399242,190.38,190.24,7.2636]
[1736410209715,0.88399242,190.38,190.24,4.6346]
[1736410210026,16.99539964,190.37,190.24,4.6346]
[1736410210226,0.88420298,190.36,190.24,4.6346]
[1736410210421,16.99539964,190.34,190.24,1.616]
[1736410210626,16.99539964,190.31,190.18,3.1145]
[1736410210828,6.20420298,190.3,190.18,4.653]
[1736410211221,5.32,190.3,190.18,4.653]
[1736410211426,0.88385829,190.29,190.18,4.653]
[1736410211616,5.32,190.3,190.18,4.653]
[1736410211821,5.32,190.3,190.2,16.99539964]
[1736410212223,5.32,190.3,190.18,4.653]
[1736410212428,0.88380227,190.29,190.18,4.653]
[1736410212825,16.99539964,190.28,190.18,4.653]
[1736410213721,5.32,190.3,190.18,7.283]
[1736410213922,0.88342017,190.29,190.18,4.653]
[1736410214124,16.99539964,190.28,190.18,4.653]
[1736410214323,16.99539964,190.25,190.11,2.6309]
[1736410214523,16.99539964,190.25,190.1,1.5653]
[1736410214727,16.99539964,190.28,190.12,16.99539964]
[1736410215027,0.88384463,190.27,190.13,3.179]
[1736410215524,0.88377122,190.26,190.13,3.179]
[1736410215827,16.99539964,190.28,190.17,2.6301]
[1736410216328,0.88381171,190.27,190.15,16.99539964]
[1736410216526,0.88381171,190.27,190.13,3.179]
[1736410217122,16.99539964,190.28,190.13,3.179]
[1736410217523,0.88374384,190.27,190.13,3.179]
[1736410217825,0.88374384,190.27,190.14,2.6305]
[1736410218026,0.88339801,190.26,190.13,3.179]
[1736410218229,0.88339801,190.27,190.13,3.179]
[1736410218425,16.99539964,190.25,190.13,3.179]
[1736410218728,0.88339801,190.24,190.13,3.179]
[1736410219219,16.99539964,190.28,190.13,3.179]
[1736410219421,16.99539964,190.22,190.1,1.5653]
[1736410219623,5.24,190.21,190.1,4.1964]
[1736410220017,5.24,190.21,190.1,1.5653]
[1736410221434,16.99539964,190.19,190.1,1.5653]
[1736410221728,16.99539964,190.19,190.04,3.125]
[1736410222032,16.99539964,190.16,190.04,3.125]
[1736410222529,19.35299964,190.2,190.04,3.125]
[1736410222729,0.88322022,190.19,190.04,3.125]
[1736410223027,0.88322022,190.19,190.04,5.7569]
[1736410223231,19.35299964,190.2,190.04,5.7569]
[1736410223232,0.88314297,190.18,190.04,5.7569]
[1736410223529,0.88314297,190.19,190.04,3.125]
[1736410223730,0.88314297,190.18,190.04,3.125]
[1736410224031,19.35299964,190.2,190.05,16.99539964]
[1736410224230,6.08334718,190.19,190.05,16.99539964]
[1736410224421,0.88334718,190.18,190.05,16.99539964]
[1736410224626,0.88334718,190.18,190.08,16.99539964]
[1736410224831,5.2,190.19,190.08,16.99539964]
[1736410225029,5.2,190.19,190.11,2.6308]
[1736410225433,5.2,190.19,190.12,1.6181]
[1736410226731,5.2,190.19,190.06,16.99539964]
[1736410226933,5.2,190.19,190.07,1.6181]
[1736410227433,9.07332869,190.26,190.12,16.99539964]
[1736410227735,6.08339716,190.25,190.13,3.1182]
[1736410227926,5.2,190.25,190.13,3.1182]
[1736410228128,0.88342523,190.24,190.13,3.1182]
[1736410228533,16.99539964,190.19,190.07,1.6181]
[1736410228738,0.88342523,190.18,190.07,1.6181]
[1736410228935,5.2,190.17,190.07,1.6181]
[1736410229329,5.2,190.17,190.07,18.61349964]
[1736410229836,5.2,190.17,190.1,2.631]
[1736410230042,5.2,190.17,190.11,3.1166]
[1736410232141,5.2,190.17,190.11,1.5064]
[1736410232436,5.2,190.17,190.07,18.61349964]
[1736410232437,5.2,190.17,190.07,1.6181]
[1736410233527,17.87973136,190.16,190.01,22.74419964]
[1736410233728,17.87973136,190.16,190.02,1.4663]
[1736410233927,16.99539964,190.16,190.03,2.632]
[1736410234130,0.88413392,190.15,190.03,2.632]
[1736410234332,16.99539964,190.16,190.03,2.632]
[1736410234536,16.99539964,190.16,190.04,2.6319]
[1736410234734,16.99539964,190.16,190.02,1.4663]
[1736410234934,0.8840947,190.15,190.02,1.4663]
[1736410235141,0.8840947,190.15,190.02,18.46169964]
[1736410235440,5.2,190.17,190.02,18.46169964]
[1736410235940,1.6274,190.18,190.02,18.46169964]
[1736410236141,5.14,190.17,190.05,16.99539964]
[1736410236338,5.12,190.18,190.05,16.99539964]
[1736410236537,5.12,190.18,190.06,2.6315]
[1736410236739,5.12,190.18,190.04,16.99539964]
[1736410236940,5.12,190.18,190.06,2.6316]
[1736410238944,16.99539964,190.16,190.03,2.632]
[1736410239156,16.99539964,190.16,190.02,1.4663]
[1736410240250,16.99539964,190.13,190.02,1.4663]
[1736410241143,1.5083,190.14,190.02,1.4663]
[1736410241640,1.5083,190.14,190.03,2.632]
[1736410241838,1.5083,190.14,190.02,1.4663]
[1736410242149,0.8878,190.15,190.03,16.99539964]
[1736410242347,5.06,190.15,190.06,2.6316]
[1736410242947,5.06,190.15,190.07,2.6314]
[1736410243447,5.06,190.17,190.08,2.6312]
[1736410243748,5.04,190.18,190.06,16.99539964]
[1736410244145,5.04,190.18,190.09,2.6312]
[1736410244738,2.3772,190.24,190.11,2.6309]
[1736410244940,2.3772,190.24,190.12,18.54069964]
[1736410244941,1.4899,190.24,190.12,18.54069964]
[1736410245140,5.02,190.23,190.12,18.54069964]
[1736410245646,0.88472924,190.22,190.12,4.1761]
[1736410245850,5.02,190.23,190.12,4.1761]
[1736410246050,0.88471606,190.22,190.12,4.1761]
[1736410246251,0.88471606,190.22,190.12,1.5453]
[1736410246639,16.99539964,190.22,190.12,1.5453]
[1736410246849,0.88456833,190.21,190.12,1.5453]
[1736410247149,0.88456833,190.21,190.1,3.1002]
[1736410247954,0.88456833,190.21,190.1,20.09559964]
[1736410248156,0.88456833,190.22,190.11,1.5198]
[1736410248355,5.02,190.23,190.11,1.5198]
[1736410248557,5.0,190.22,190.12,2.6307]
[1736410248949,5.0,190.22,190.08,2.6313]
[1736410249160,0.88454845,190.21,190.06,16.99539964]
[1736410249453,0.8845468,190.21,190.09,2.6311]
[1736410249655,16.99539964,190.15,190.02,33.84049115]
[1736410249856,4.98,190.14,190.02,33.84049115]
[1736410250051,4.98,190.14,190.02,4.6358]
[1736410250254,16.99539964,190.12,190.02,4.6358]
[1736410252255,16.99539964,190.12,189.97,2.6329]
[1736410252450,16.99539964,190.12,189.95,4.6586]
[1736410252853,16.99539964,190.12,189.97,16.99539964]
[1736410253050,4.98,190.14,189.97,16.99539964]
[1736410253357,4.98,190.14,190.0,16.99539964]
[1736410254555,4.98,190.14,190.03,2.632]
[1736410254776,4.98,190.14,190.04,4.769]
[1736410255154,4.98,190.14,190.05,2.6318]
[1736410255559,4.98,190.14,190.04,4.769]
[1736410258454,4.98,190.15,190.04,4.769]
[1736410258659,16.99539964,190.21,190.04,4.769]
[1736410258963,5.86502889,190.2,190.06,16.99539964]
[1736410259163,5.86502889,190.2,190.08,2.6313]
[1736410259164,0.88509243,190.19,190.08,2.6313]
[1736410259665,4.98,190.2,190.08,2.6313]
[1736410260162,4.98,190.2,190.06,16.99539964]
[1736410260163,0.88480617,190.19,190.06,16.99539964]
[1736410260364,0.88471363,190.18,190.06,2.6315]
[1736410260563,4.98,190.2,190.04,4.769]
[1736410260868,0.88472912,190.19,190.04,4.769]
[1736410261583,0.88472912,190.19,190.08,2.6312]
[1736410261971,19.49059964,190.24,190.06,16.99539964]
[1736410262271,0.88520264,190.23,190.09,16.99539964]
[1736410262465,0.88520264,190.24,190.12,16.99539964]
[1736410262660,4.94,190.26,190.13,4.7238]
[1736410262968,4.92,190.26,190.13,4.7238]
[1736410263164,176.21854962,190.34,190.21,16.99539964]
[1736410263368,176.21854962,190.34,190.28,16.99539964]
[1736410263563,4.92,190.38,190.28,16.99539964]
[1736410263758,0.88596837,190.37,190.28,16.99539964]
[1736410264165,4.92,190.38,190.28,19.62399964]
[1736410264360,0.88598973,190.37,190.28,19.62399964]
[1736410264663,0.88598973,190.37,190.28,16.99539964]
[1736410264868,0.88598973,190.37,190.25,19.62429964]
[1736410265171,0.88598973,190.37,190.25,16.99539964]
[1736410265365,0.88598973,190.37,190.23,3.0286]
[1736410265366,0.88598973,190.37,190.28,16.99539964]
[1736410265563,4.88,190.4,190.28,16.99539964]
[1736410265765,0.88610196,190.39,190.31,16.99539964]
[1736410265965,4.88,190.43,190.32,1.6089]
[1736410266167,0.88615889,190.42,190.32,3.1487]
[1736410266367,0.88615889,190.42,190.34,2.6278]
[1736410266667,4.88,190.43,190.33,1.5444]
[1736410267066,0.88618231,190.42,190.33,1.5444]
[1736410267666,17.88158195,190.42,190.26,1.5398]
[1736410267862,0.88618231,190.41,190.26,1.5398]
[1736410268172,0.88618231,190.41,190.29,2.6284]
[1736410269263,16.99539964,190.42,190.3,4.2179]
[1736410269566,0.88629196,190.41,190.3,1.5896]
[1736410269766,4.86,190.4,190.31,18.57579964]
[1736410269965,4.86,190.4,190.33,2.6278]
[1736410270168,4.86,190.4,190.31,18.57579964]
[1736410270572,4.86,190.4,190.31,1.5804]
[1736410271068,1.6255,190.46,190.33,2.6279]
[1736410271269,5.72649483,190.45,190.31,1.5804]
[1736410271468,0.88649483,190.44,190.31,1.5804]
[1736410271669,16.99539964,190.43,190.31,1.5804]
[1736410271868,0.88649483,190.42,190.31,1.5804]
[1736410273671,4.84,190.45,190.31,18.57579964]
[1736410274064,4.84,190.45,190.32,2.6279]
[1736410274065,0.88691492,190.44,190.32,2.6279]
[1736410274266,0.88691492,190.44,190.31,18.57579964]
[1736410274566,21.83539964,190.45,190.31,18.57579964]
[1736410274567,0.88690362,190.43,190.31,18.57579964]
[1736410274769,0.88690362,190.44,190.31,18.57579964]
[1736410274968,0.88690362,190.43,190.31,18.57579964]
[1736410275159,0.88678046,190.42,190.34,2.6277]
[1736410275368,4.84,190.45,190.31,18.57579964]
[1736410275369,0.88678046,190.44,190.31,18.57579964]
[1736410275560,0.8868427,190.43,190.31,18.57579964]
[1736410275765,16.99539964,190.51,190.34,16.99539964]
[1736410275967,0.88692962,190.5,190.35,1.4668]
[1736410276371,0.88692962,190.5,190.39,2.6271]
[1736410277071,16.99539964,190.51,190.39,2.6271]
[1736410277270,0.8870972,190.5,190.4,1.5888]
[1736410277668,0.8870972,190.5,190.41,2.6267]
[1736410278073,0.8870972,190.51,190.41,2.6267]
[1736410278272,0.8870972,190.5,190.4,1.5888]
[1736410278465,0.88717177,190.51,190.4,1.5888]
[1736410278684,0.88717177,190.5,190.4,1.5888]
[1736410278970,0.88717177,190.49,190.4,1.5888]
[1736410279169,0.88717177,190.5,190.4,1.5888]
[1736410279363,0.88717177,190.49,190.4,1.5888]
[1736410279674,0.88729166,190.48,190.4,1.5888]
[1736410279868,0.88729166,190.5,190.4,1.5888]
[1736410280063,0.8872787,190.49,190.4,1.5888]
[1736410280268,0.8872787,190.5,190.4,1.5888]
[1736410280470,16.99539964,190.48,190.35,1.4668]
[1736410280777,16.99539964,190.45,190.35,1.4668]
[1736410281072,5.6272787,190.44,190.35,1.4668]
[1736410281274,0.8872787,190.43,190.35,1.4668]
[1736410281869,4.74,190.44,190.38,2.6272]
[1736410282074,4.74,190.44,190.32,1.5523]
[1736410282269,17.88262684,190.43,190.32,1.5523]
[1736410282671,0.8872272,190.42,190.32,1.5523]
[1736410284374,4.74,190.44,190.32,1.5523]
[1736410284576,4.74,190.44,190.35,2.6276]
[1736410285173,4.74,190.44,190.38,2.6272]
[1736410285581,4.74,190.44,190.36,16.99539964]
[1736410285776,16.99539964,190.51,190.37,1.5899]
[1736410285777,4.72,190.49,190.37,1.5899]
[1736410286276,0.88920505,190.48,190.37,1.5899]
[1736410286470,4.72,190.49,190.4,2.6268]
[1736410286674,0.88895941,190.48,190.37,1.5899]
[1736410286874,4.72,190.49,190.37,1.5899]
[1736410287174,0.88886633,190.48,190.37,1.5899]
[1736410287580,0.88875809,190.47,190.37,1.5899]
[1736410287773,0.88875809,190.46,190.37,1.5899]
[1736410288179,16.99539964,190.48,190.37,1.5899]
[1736410288381,0.88862867,190.47,190.37,1.5899]
[1736410289585,0.88862867,190.47,190.37,4.2171]
[1736410289783,0.88862867,190.47,190.37,1.5899]
[1736410290477,0.88862867,190.47,190.32,1.5523]
[1736410290478,16.99539964,190.45,190.32,1.5523]
[1736410290780,16.99539964,190.45,190.32,3.108]
[1736410291884,0.88828833,190.44,190.35,2.6276]
[1736410292276,18.58129964,190.48,190.32,3.108]
[1736410292474,0.8882409,190.47,190.32,3.108]
[1736410292883,0.88834398,190.46,190.35,2.6276]
[1736410293081,16.99539964,190.45,190.32,3.108]
[1736410293276,0.88834398,190.44,190.32,3.108]
[1736410293484,0.88834398,190.44,190.33,2.6278]
[1736410293983,0.88834398,190.44,190.34,2.6277]
[1736410294187,0.88834398,190.44,190.32,3.108]
[1736410294884,0.88834398,190.44,190.34,2.6277]
[1736410295185,0.88834398,190.44,190.32,3.108]
[1736410295382,16.99539964,190.45,190.33,2.6279]
[1736410295579,0.88857679,190.44,190.33,2.6279]
[1736410295779,0.88857679,190.44,190.32,3.108]
[1736410295980,0.88857679,190.44,190.31,4.2085]
[1736410295981,16.99539964,190.39,190.25,16.99539964]
[1736410296180,4.58,190.38,190.25,21.62829964]
[1736410296383,4.58,190.38,190.27,2.6286]
[1736410296584,0.88847628,190.37,190.25,21.62829964]
[1736410296783,4.58,190.38,190.28,16.99539964]
[1736410297887,4.58,190.43,190.31,16.99539964]
[1736410298087,0.88879414,190.42,190.31,16.99539964]
[1736410298290,0.88879414,190.42,190.27,4.58]
[1736410298291,4.58,190.43,190.34,16.99539964]
[1736410298484,4.58,190.43,190.35,4.5566]
[1736410298686,4.58,190.48,190.37,16.99539964]
[1736410299190,142.4138112,190.52,190.4,2.6269]
[1736410299390,0.88911337,190.51,190.4,16.99539964]
[1736410299580,5.44911337,190.51,190.4,16.99539964]
[1736410299786,0.88911337,190.5,190.4,16.99539964]
[1736410300683,0.8895696,190.49,190.42,2.6266]
[1736410300887,4.56,190.52,190.4,16.99539964]
[1736410301185,0.88958806,190.51,190.4,16.99539964]
[1736410301412,0.88958806,190.51,190.43,16.99539964]
[1736410301580,0.88958806,190.51,190.44,4.5972]
[1736410301788,0.88958806,190.56,190.44,7.2234]
[1736410301989,4.54,190.55,190.44,4.5972]
[1736410302180,0.88958738,190.54,190.44,4.5972]
[1736410302785,0.88958738,190.54,190.47,2.6259]
[1736410302987,4.52,190.56,190.44,4.5972]
[1736410304298,142.4138112,190.66,190.49,16.99539964]
[1736410304498,22.38549097,190.65,190.49,16.99539964]
[1736410304799,0.89009133,190.64,190.49,16.99539964]
[1736410304998,16.99539964,190.62,190.46,16.99539964]
[1736410305296,16.99539964,190.59,190.48,2.6257]
[1736410305489,5.39009133,190.58,190.48,2.6257]
[1736410305689,0.89009133,190.57,190.48,2.6257]
[1736410306602,0.89011524,190.56,190.48,2.6257]
[1736410306899,4.5,190.58,190.48,2.6257]
[1736410307102,0.89006677,190.57,190.48,2.6257]
[1736410307301,0.89006677,190.57,190.47,2.6258]
[1736410307502,0.89006677,190.57,190.44,4.5972]
[1736410307801,0.89006677,190.57,190.46,16.99539964]
[1736410308395,0.89006677,190.57,190.51,2.6254]
[1736410308604,4.5,190.58,190.51,2.6254]
[1736410309111,0.89010609,190.57,190.49,2.6256]
[1736410309298,4.5,190.58,190.49,2.6256]
[1736410309498,4.5,190.58,190.46,16.99539964]
[1736410310103,16.99539964,190.62,190.46,16.99539964]
[1736410310306,5.33025523,190.61,190.49,16.99539964]
[1736410310502,0.89025523,190.6,190.49,16.99539964]
[1736410311205,0.89025523,190.6,190.52,2.6252]
[1736410313006,0.89025523,190.6,190.54,2.625]
[1736410314202,0.89025523,190.6,190.53,2.6251]
[1736410315310,0.89069365,190.59,190.52,10.58471205]
[1736410315504,4.4,190.63,190.53,4.6025]
[1736410315703,0.89086807,190.62,190.55,10.58471205]
[1736410315904,0.21177,190.64,190.55,10.58471205]
[1736410316211,0.89088444,190.63,190.55,10.58471205]
[1736410316412,0.89088444,190.63,190.53,4.6025]
[1736410316609,0.89088444,190.63,190.55,2.6247]
[1736410316810,0.89088444,190.63,190.53,4.6025]
[1736410317031,0.89088444,190.63,190.56,2.6247]
[1736410317211,10.79648205,190.64,190.56,2.6247]
[1736410317509,0.89076279,190.63,190.56,2.6247]
[1736410318506,0.89053506,190.62,190.53,4.6025]
[1736410318709,0.21177,190.64,190.56,10.58471205]
[1736410318906,4.4,190.66,190.59,2.6242]
[1736410319112,0.89051813,190.65,190.53,4.6025]
[1736410319606,17.82340886,190.65,190.53,4.6025]
[1736410319808,0.89030653,190.64,190.53,4.6025]
[1736410320199,0.89030653,190.64,190.53,7.2275]
[1736410320404,0.89030653,190.64,190.53,4.6025]
[1736410321608,0.89030653,190.64,190.53,3.1245]
[1736410322004,16.93289073,190.62,190.46,16.93289073]
[1736410322319,0.89006105,190.61,190.46,16.93289073]
[1736410322810,16.93289073,190.59,190.44,1.566]
[1736410323009,16.93289073,190.56,190.44,1.566]
[1736410323208,16.93289073,190.53,190.44,1.566]
[1736410323414,0.88998166,190.52,190.44,1.566]
[1736410323610,16.93289073,190.56,190.44,1.566]
[1736410323611,4.34,190.51,190.44,1.566]
[1736410324010,0.88971735,190.5,190.44,1.566]
[1736410324213,4.34,190.51,190.44,1.566]
[1736410324819,4.34,190.56,190.44,1.566]
[1736410325018,0.89008453,190.55,190.49,2.6256]
[1736410325213,0.89008453,190.55,190.46,16.93289073]
[1736410325473,4.34,190.56,190.46,16.93289073]
[1736410325620,4.34,190.6,190.54,2.625]
[1736410325824,4.34,190.6,190.49,16.93289073]
[1736410325825,0.89020705,190.59,190.5,1.4663]
[1736410326017,4.34,190.6,190.55,2.6248]
[1736410326216,4.34,190.6,190.51,1.4962]
[1736410326217,0.89015731,190.59,190.51,1.4962]
[1736410326718,4.34,190.6,190.51,1.4962]
[1736410326918,0.89006715,190.59,190.51,1.4962]
[1736410328820,17.82295788,190.59,190.44,1.566]
[1736410329019,0.89006715,190.58,190.45,1.5771]
[1736410329222,16.93289073,190.56,190.45,1.5771]
[1736410329425,0.88964318,190.55,190.45,1.5771]
[1736410329720,0.88964318,190.55,190.44,3.0756]
[1736410330120,0.88955735,190.54,190.44,3.0756]
[1736410330423,5.20955735,190.53,190.44,3.0756]
[1736410330622,4.32,190.53,190.46,2.626]
[1736410330824,4.32,190.53,190.44,3.0756]
[1736410331023,18.50129073,190.59,190.44,3.0756]
[1736410331228,5.21029974,190.58,190.44,3.0756]
[1736410331426,16.93289073,190.56,190.44,3.0756]
[1736410331725,0.89029974,190.55,190.44,3.0756]
[1736410331926,0.89029974,190.55,190.46,16.93289073]
[1736410332123,4.32,190.55,190.46,16.93289073]
[1736410332325,16.93289073,190.65,190.49,16.93289073]
[1736410332530,5.21064677,190.64,190.5,1.47]
[1736410332729,0.89064677,190.63,190.5,1.47]
[1736410332929,0.89064677,190.63,190.52,16.93289073]
[1736410333730,0.89064677,190.63,190.54,2.6249]
[1736410334328,0.89064677,190.63,190.55,2.6249]
[1736410334528,4.3,190.62,190.55,2.6249]
[1736410334728,0.8906868,190.61,190.55,2.6249]
[1736410335032,0.8906868,190.61,190.53,5.639]
[1736410335621,0.8906868,190.61,190.53,3.014]
[1736410335823,0.8906868,190.61,190.5,1.47]
[1736410336230,0.8906868,190.61,190.51,2.6254]
[1736410337026,0.8906868,190.61,190.5,3.0665]
[1736410337233,0.89041764,190.6,190.5,3.0665]
[1736410337432,0.89041764,190.61,190.5,1.47]
[1736410337635,0.89041764,190.6,190.5,1.47]
[1736410337835,21.23289073,190.62,190.5,1.47]
[1736410338037,0.89036724,190.61,190.5,1.47]
[1736410338234,16.93289073,190.59,190.5,1.47]
[1736410338433,0.89036724,190.58,190.45,1.5965]
[1736410338630,16.93289073,190.56,190.45,1.5965]
[1736410338837,5.15036724,190.55,190.45,1.5965]
[1736410339040,0.89036724,190.54,190.45,1.5965]
[1736410339837,4.26,190.55,190.45,4.2227]
[1736410340037,0.89036632,190.54,190.45,4.2227]
[1736410340537,0.89036632,190.54,190.45,1.5965]
[1736410340747,0.89036632,190.54,190.4,16.93289073]
[1736410340941,0.89015093,190.53,190.4,18.52059073]
[1736410341242,0.89015093,190.52,190.4,18.52059073]
[1736410341541,4.24,190.51,190.43,16.93289073]
[1736410343644,4.24,190.51,190.43,2.6264]
[1736410343940,4.22,190.5,190.43,2.6264]
[1736410344139,4.22,190.5,190.4,18.52059073]
[1736410344140,4.22,190.5,190.44,2.6263]
[1736410344340,4.22,190.5,190.4,18.52059073]
[1736410344644,4.22,190.5,190.46,2.6261]
[1736410344846,4.22,190.5,190.43,16.93289073]
[1736410346247,1.7764,190.5,190.48,2.6258]
[1736410346641,4.22,190.52,190.48,2.6258]
[1736410346837,16.93289073,190.59,190.43,16.93289073]
[1736410347043,0.89054219,190.58,190.49,16.93289073]
[1736410347347,4.2,190.58,190.5,1.516]
[1736410347745,8.56301454,190.64,190.5,1.516]
[1736410347946,5.09067639,190.63,190.52,16.93289073]
[1736410348146,0.89067639,190.62,190.52,16.93289073]
[1736410348747,0.89067639,190.62,190.55,2.6249]
[1736410348945,0.89067639,190.62,190.52,16.93289073]
[1736410349551,0.89067639,190.62,190.55,2.6249]
[1736410349751,4.18,190.61,190.52,16.93289073]
[1736410349951,4.18,190.61,190.55,2.6248]
[1736410350451,4.18,190.61,190.52,16.93289073]
[1736410350644,0.22889,190.65,190.52,16.93289073]
[1736410350848,5.04996273,190.64,190.52,16.93289073]
[1736410351048,0.88996273,190.63,190.53,2.625]
[1736410351448,0.88996273,190.63,190.5,1.516]
[1736410351653,0.88996273,190.63,190.51,2.6254]
[1736410351848,16.93289073,190.6,190.5,1.516]
[1736410352050,0.88996273,190.59,190.5,1.516]
[1736410352651,0.88996273,190.59,190.46,18.49339073]
[1736410352852,16.93289073,190.6,190.48,2.6257]
[1736410353056,0.88930055,190.58,190.46,18.49339073]
[1736410353253,4.14,190.57,190.46,18.49339073]
[1736410353661,4.14,190.57,190.5,2.6255]
[1736410353958,0.88930055,190.56,190.46,18.49339073]